[Event "*** SCC Grand Prix: Titled Tuesday Blitz"]
[Site "Chess.com"]
[Date "2020.06.02"]
[Round "9"]
[White "Stewie_89"]
[Black "Barmen_EV"]
[Result "1-0"]
[WhiteElo "2624"]
[BlackElo "2404"]
[TimeControl "180+1"]
[EndTime "11:48:10 PDT"]
[Termination "Stewie_89 won on time"]

1. e4 {[%clk 0:03:00.9]} 1... c5 {[%clk 0:02:44.1]} 2. Nf3 {[%clk 0:02:59.9]}
2... Nc6 {[%clk 0:02:40]} 3. Bb5 {[%clk 0:02:59.4]} 3... e6 {[%clk 0:02:39.6]}
4. Bxc6 {[%clk 0:02:59]} 4... bxc6 {[%clk 0:02:40.5]} 5. O-O {[%clk 0:02:58.6]}
5... Ne7 {[%clk 0:02:40.8]} 6. d3 {[%clk 0:02:58.3]} 6... Ng6 {[%clk 0:02:40.6]}
7. e5 {[%clk 0:02:58.6]} 7... Be7 {[%clk 0:02:39.6]} 8. Nc3 {[%clk 0:02:57.8]}
8... O-O {[%clk 0:02:40.5]} 9. Be3 {[%clk 0:02:45.7]} 9... f6 {[%clk 0:02:37.6]}
10. exf6 {[%clk 0:02:45.1]} 10... gxf6 {[%clk 0:02:38.5]} 11. h4 {[%clk
0:02:41.6]} 11... Kh8 {[%clk 0:02:26.1]} 12. h5 {[%clk 0:02:31.7]} 12... Ne5
{[%clk 0:02:25.6]} 13. Nxe5 {[%clk 0:02:27.4]} 13... fxe5 {[%clk 0:02:26.5]} 14.
Bh6 {[%clk 0:02:21.3]} 14... Rg8 {[%clk 0:02:17.6]} 15. Qe2 {[%clk 0:02:20.2]}
15... d6 {[%clk 0:02:14.4]} 16. Ne4 {[%clk 0:02:16.9]} 16... Bd7 {[%clk
0:01:51.5]} 17. f4 {[%clk 0:02:15.2]} 17... exf4 {[%clk 0:01:47.7]} 18. Rxf4
{[%clk 0:02:13.7]} 18... e5 {[%clk 0:01:39.4]} 19. Rf7 {[%clk 0:01:37.8]} 19...
Bg4 {[%clk 0:01:38.1]} 20. Nf6 {[%clk 0:00:57.9]} 20... Bxf6 {[%clk 0:00:53.5]}
21. Qe4 {[%clk 0:00:56.9]} 21... Bg7 {[%clk 0:00:22.8]} 22. Rxg7 {[%clk
0:00:55.5]} 22... Rxg7 {[%clk 0:00:23.7]} 23. Bxg7+ {[%clk 0:00:55.9]} 23...
Kxg7 {[%clk 0:00:24.6]} 24. Qxg4+ {[%clk 0:00:56.5]} 24... Kh6 {[%clk
0:00:25.5]} 25. Rf1 {[%clk 0:00:46.4]} 25... Qg5 {[%clk 0:00:10.4]} 26. Qe6+
{[%clk 0:00:45.2]} 26... Kg7 {[%clk 0:00:10.7]} 27. h6+ {[%clk 0:00:27.5]} 27...
Kh8 {[%clk 0:00:09.4]} 28. Qxd6 {[%clk 0:00:27.6]} 28... Rg8 {[%clk 0:00:07.2]}
29. Qxc6 {[%clk 0:00:26.6]} 29... e4 {[%clk 0:00:04.8]} 30. Qf6+ {[%clk
0:00:25.1]} 30... Qxf6 {[%clk 0:00:03]} 31. Rxf6 {[%clk 0:00:26]} 31... exd3
{[%clk 0:00:03.1]} 32. cxd3 {[%clk 0:00:24.3]} 32... Rd8 {[%clk 0:00:04]} 33.
Kf2 {[%clk 0:00:24]} 33... Kg8 {[%clk 0:00:03.6]} 34. Ke3 {[%clk 0:00:23.9]}
34... a5 {[%clk 0:00:03.4]} 35. Rc6 {[%clk 0:00:23.8]} 35... Rd5 {[%clk
0:00:02.7]} 36. g4 {[%clk 0:00:19.4]} 36... Rg5 {[%clk 0:00:02.6]} 37. Kf4
{[%clk 0:00:19.7]} 37... Rd5 {[%clk 0:00:02.4]} 38. b3 {[%clk 0:00:19.3]} 38...
Rxd3 {[%clk 0:00:02.1]} 39. Rxc5 {[%clk 0:00:19.5]} 39... a4 {[%clk 0:00:01.5]}
40. bxa4 {[%clk 0:00:19.2]} 40... Rd4+ {[%clk 0:00:01.5]} 41. Kf5 {[%clk
0:00:19.5]} 41... Rxa4 {[%clk 0:00:02.4]} 42. Rc8+ {[%clk 0:00:19.5]} 42... Kf7
{[%clk 0:00:02.6]} 43. Rc7+ {[%clk 0:00:19.7]} 43... Kg8 {[%clk 0:00:02.9]} 44.
Rg7+ {[%clk 0:00:18.9]} 44... Kh8 {[%clk 0:00:03.1]} 45. Rc7 {[%clk 0:00:18.7]}
45... Kg8 {[%clk 0:00:03.1]} 46. Rc2 {[%clk 0:00:18.1]} 46... Ra5+ {[%clk
0:00:01.6]} 47. Kf4 {[%clk 0:00:18.3]} 47... Ra4+ {[%clk 0:00:01.8]} 48. Kg3
{[%clk 0:00:18.7]} 48... Ra3+ {[%clk 0:00:01.9]} 49. Kh4 {[%clk 0:00:18.6]}
49... Ra4 {[%clk 0:00:01.6]} 50. Kh5 {[%clk 0:00:18.9]} 50... Kf7 {[%clk
0:00:01.7]} 51. g5 {[%clk 0:00:19.2]} 51... Ra5 {[%clk 0:00:02.1]} 52. Rc7+
{[%clk 0:00:19.1]} 52... Kg8 {[%clk 0:00:02.4]} 53. Rg7+ {[%clk 0:00:17.7]}
53... Kh8 {[%clk 0:00:02]} 54. Re7 {[%clk 0:00:17.8]} 54... Kg8 {[%clk
0:00:02.2]} 55. Kg4 {[%clk 0:00:18.1]} 55... Ra4+ {[%clk 0:00:01.9]} 56. Kf5
{[%clk 0:00:18.2]} 56... Rxa2 {[%clk 0:00:02.1]} 57. Kf6 {[%clk 0:00:17.4]} 1-0

[Event "*** SCC Grand Prix: Titled Tuesday Blitz"]
[Site "Chess.com"]
[Date "2020.06.02"]
[Round "9"]
[White "chesslh19"]
[Black "MariaFominykh"]
[Result "0-1"]
[WhiteElo "2163"]
[BlackElo "2266"]
[TimeControl "180+1"]
[EndTime "11:48:10 PDT"]
[Termination "MariaFominykh won by resignation"]

1. e4 {[%clk 0:03:00.9]} 1... d6 {[%clk 0:02:57.8]} 2. d4 {[%clk 0:03:00.7]}
2... Nf6 {[%clk 0:02:58.6]} 3. Nc3 {[%clk 0:03:00.5]} 3... e5 {[%clk 0:02:59.3]}
4. dxe5 {[%clk 0:02:59]} 4... dxe5 {[%clk 0:03:00.2]} 5. Qxd8+ {[%clk
0:02:59.6]} 5... Kxd8 {[%clk 0:03:00.9]} 6. Bg5 {[%clk 0:03:00.3]} 6... Be6
{[%clk 0:02:59.5]} 7. O-O-O+ {[%clk 0:03:00.5]} 7... Ke8 {[%clk 0:03:00]} 8.
Bxf6 {[%clk 0:02:31.5]} 8... gxf6 {[%clk 0:02:58.9]} 9. Nd5 {[%clk 0:02:32.1]}
9... Bxd5 {[%clk 0:02:54.7]} 10. Rxd5 {[%clk 0:02:29.8]} 10... Nd7 {[%clk
0:02:38.4]} 11. Ne2 {[%clk 0:02:22.8]} 11... Nc5 {[%clk 0:02:31.9]} 12. Ng3
{[%clk 0:02:20.9]} 12... c6 {[%clk 0:02:19.5]} 13. Rd1 {[%clk 0:02:20.3]} 13...
Bh6+ {[%clk 0:02:11.2]} 14. Kb1 {[%clk 0:02:19.8]} 14... Bf4 {[%clk 0:02:10.8]}
15. f3 {[%clk 0:02:18.3]} 15... Bxg3 {[%clk 0:01:29.3]} 16. hxg3 {[%clk
0:02:14.7]} 16... Ke7 {[%clk 0:01:29]} 17. g4 {[%clk 0:02:01.3]} 17... Ne6
{[%clk 0:01:24.7]} 18. g3 {[%clk 0:01:57.8]} 18... Rhg8 {[%clk 0:01:16.6]} 19.
c3 {[%clk 0:01:51.4]} 19... Rad8 {[%clk 0:00:58]} 20. Be2 {[%clk 0:01:50.7]}
20... Ng5 {[%clk 0:00:56]} 21. Kc2 {[%clk 0:01:45.6]} 21... Rxd1 {[%clk
0:00:53.6]} 22. Rxd1 {[%clk 0:01:42.3]} 22... Rd8 {[%clk 0:00:45.1]} 23. Rh1
{[%clk 0:01:35.7]} 23... Kf8 {[%clk 0:00:40.6]} 24. b4 {[%clk 0:01:20]} 24...
Kg7 {[%clk 0:00:40.4]} 25. a4 {[%clk 0:01:16]} 25... b6 {[%clk 0:00:29.9]} 26.
Ra1 {[%clk 0:01:12.9]} 26... Ne6 {[%clk 0:00:26.3]} 27. a5 {[%clk 0:01:06.7]}
27... b5 {[%clk 0:00:26.2]} 28. Rh1 {[%clk 0:01:02]} 28... Nc7 {[%clk
0:00:25.4]} 29. Bd3 {[%clk 0:00:46.1]} 29... a6 {[%clk 0:00:25.1]} 30. Be2
{[%clk 0:00:46.1]} 30... Ne6 {[%clk 0:00:25]} 31. Rg1 {[%clk 0:00:45.5]} 31...
c5 {[%clk 0:00:24.9]} 32. bxc5 {[%clk 0:00:18.5]} 32... Nxc5 {[%clk 0:00:25.8]}
33. c4 {[%clk 0:00:18.6]} 33... b4 {[%clk 0:00:24.9]} 34. Rb1 {[%clk 0:00:18.1]}
34... Rb8 {[%clk 0:00:20.1]} 35. Rd1 {[%clk 0:00:18.1]} 35... b3+ {[%clk
0:00:19.7]} 36. Kb2 {[%clk 0:00:16.1]} 36... Na4+ {[%clk 0:00:19.5]} 37. Ka3
{[%clk 0:00:16.4]} 37... Nc3 {[%clk 0:00:19.7]} 38. Re1 {[%clk 0:00:15.3]} 38...
b2 {[%clk 0:00:19.1]} 39. Bd3 {[%clk 0:00:14.8]} 39... b1=Q {[%clk 0:00:18.7]}
40. Bxb1 {[%clk 0:00:15.1]} 40... Nxb1+ {[%clk 0:00:10.8]} 41. Ka4 {[%clk
0:00:12.2]} 41... Nd2 {[%clk 0:00:11.7]} 42. Rc1 {[%clk 0:00:10.5]} 42... Nxf3
{[%clk 0:00:11.2]} 43. c5 {[%clk 0:00:10.6]} 43... Nd4 {[%clk 0:00:11.8]} 44. c6
{[%clk 0:00:10.8]} 44... Rc8 {[%clk 0:00:12.3]} 45. c7 {[%clk 0:00:11.1]} 45...
Nb5 {[%clk 0:00:12.8]} 46. Rc6 {[%clk 0:00:10.6]} 46... Rxc7 {[%clk 0:00:13.4]}
47. Rxa6 {[%clk 0:00:10.3]} 47... Nd4 {[%clk 0:00:13.8]} 48. Rb6 {[%clk
0:00:08.3]} 48... Rc1 {[%clk 0:00:13.3]} 49. Kb4 {[%clk 0:00:06.1]} 49... Rb1+
{[%clk 0:00:12.6]} 50. Kc5 {[%clk 0:00:06.3]} 50... Ra1 {[%clk 0:00:12.1]} 51.
a6 {[%clk 0:00:04.3]} 51... Ne6+ {[%clk 0:00:11.6]} 52. Kd6 {[%clk 0:00:03.8]}
52... Ng5 {[%clk 0:00:10.9]} 53. Kc6 {[%clk 0:00:03.8]} 53... Nxe4 {[%clk
0:00:11.1]} 54. Kb7 {[%clk 0:00:04]} 54... Nc5+ {[%clk 0:00:10.8]} 55. Ka7
{[%clk 0:00:04.6]} 55... Nxa6 {[%clk 0:00:10.8]} 56. g5 {[%clk 0:00:02.8]} 56...
fxg5 {[%clk 0:00:09.4]} 57. g4 {[%clk 0:00:01.1]} 57... Nc5+ {[%clk 0:00:10]}
0-1

[Event "*** SCC Grand Prix: Titled Tuesday Blitz"]
[Site "Chess.com"]
[Date "2020.06.02"]
[Round "9"]
[White "zala02"]
[Black "timedothwasteme"]
[Result "1/2-1/2"]
[WhiteElo "2217"]
[BlackElo "2152"]
[TimeControl "180+1"]
[EndTime "11:48:10 PDT"]
[Termination "Game drawn - insufficient material"]

1. d4 {[%clk 0:03:00.9]} 1... Nf6 {[%clk 0:02:58]} 2. c4 {[%clk 0:02:58.5]} 2...
g6 {[%clk 0:02:57.6]} 3. Nc3 {[%clk 0:02:58]} 3... Bg7 {[%clk 0:02:56.4]} 4. e4
{[%clk 0:02:47.4]} 4... d6 {[%clk 0:02:55.5]} 5. Nf3 {[%clk 0:02:47.3]} 5... O-O
{[%clk 0:02:54.7]} 6. Be2 {[%clk 0:02:46.8]} 6... e5 {[%clk 0:02:46]} 7. O-O
{[%clk 0:02:44.9]} 7... Nc6 {[%clk 0:02:44.3]} 8. d5 {[%clk 0:02:44.6]} 8... Ne7
{[%clk 0:02:43.8]} 9. b4 {[%clk 0:02:44.3]} 9... Nh5 {[%clk 0:02:42.9]} 10. c5
{[%clk 0:02:43.1]} 10... f5 {[%clk 0:02:34.7]} 11. Ng5 {[%clk 0:02:31.5]} 11...
Nf6 {[%clk 0:02:25.8]} 12. f3 {[%clk 0:01:59.3]} 12... h6 {[%clk 0:02:13.3]} 13.
Ne6 {[%clk 0:01:57.8]} 13... Bxe6 {[%clk 0:02:12.5]} 14. dxe6 {[%clk 0:01:58.7]}
14... d5 {[%clk 0:02:11.6]} 15. exd5 {[%clk 0:01:48.8]} 15... Nfxd5 {[%clk
0:02:01.7]} 16. Nxd5 {[%clk 0:01:35.5]} 16... Qxd5 {[%clk 0:01:57.3]} 17. Qxd5
{[%clk 0:01:33.8]} 17... Nxd5 {[%clk 0:01:56.3]} 18. Bc4 {[%clk 0:01:33.6]}
18... c6 {[%clk 0:01:47.1]} 19. Rd1 {[%clk 0:01:28.7]} 19... Rfd8 {[%clk
0:01:45.5]} 20. Bb2 {[%clk 0:01:05.6]} 20... Kh7 {[%clk 0:01:37.7]} 21. a3
{[%clk 0:01:00]} 21... Ne3 {[%clk 0:00:40.1]} 22. Rxd8 {[%clk 0:00:58.6]} 22...
Rxd8 {[%clk 0:00:38.5]} 23. Bb3 {[%clk 0:00:59.1]} 23... Bf6 {[%clk 0:00:32.9]}
24. Bc1 {[%clk 0:00:46.8]} 24... f4 {[%clk 0:00:30.4]} 25. Kf2 {[%clk
0:00:24.9]} 25... Nf5 {[%clk 0:00:28.5]} 26. Bc4 {[%clk 0:00:16.9]} 26... g5
{[%clk 0:00:17.9]} 27. Ra2 {[%clk 0:00:16.5]} 27... Kg7 {[%clk 0:00:16.4]} 28.
Rd2 {[%clk 0:00:16.3]} 28... Rxd2+ {[%clk 0:00:13.1]} 29. Bxd2 {[%clk
0:00:17.2]} 29... Nd4 {[%clk 0:00:13.1]} 30. Bc3 {[%clk 0:00:15.9]} 30... Nf5
{[%clk 0:00:11.4]} 31. Ke2 {[%clk 0:00:11.9]} 31... Kf8 {[%clk 0:00:11.6]} 32.
Kd3 {[%clk 0:00:12.1]} 32... Ke7 {[%clk 0:00:11.1]} 33. Ke4 {[%clk 0:00:11.2]}
33... Ne3 {[%clk 0:00:11.4]} 34. Bb3 {[%clk 0:00:08.6]} 34... Nxg2 {[%clk
0:00:11]} 35. Bxe5 {[%clk 0:00:07.5]} 35... Bxe5 {[%clk 0:00:09.4]} 36. Kxe5
{[%clk 0:00:08.4]} 36... g4 {[%clk 0:00:07.3]} 37. fxg4 {[%clk 0:00:07.3]} 37...
f3 {[%clk 0:00:07.4]} 38. Bc4 {[%clk 0:00:06.9]} 38... f2 {[%clk 0:00:05.9]} 39.
Ke4 {[%clk 0:00:05.7]} 39... Ne1 {[%clk 0:00:03.9]} 40. Ke3 {[%clk 0:00:03.8]}
40... Nc2+ {[%clk 0:00:04.4]} 41. Kxf2 {[%clk 0:00:03.9]} 41... Nxa3 {[%clk
0:00:05.3]} 42. Bb3 {[%clk 0:00:04.3]} 42... Nb5 {[%clk 0:00:05.6]} 43. h4
{[%clk 0:00:03.7]} 43... Nd4 {[%clk 0:00:05.1]} 44. Bc4 {[%clk 0:00:04]} 44...
Nxe6 {[%clk 0:00:05.1]} 45. Bxe6 {[%clk 0:00:03.9]} 45... Kxe6 {[%clk
0:00:05.5]} 46. Ke3 {[%clk 0:00:04]} 46... Kf6 {[%clk 0:00:05.7]} 47. Kf4 {[%clk
0:00:04.4]} 47... b6 {[%clk 0:00:06]} 48. g5+ {[%clk 0:00:03.7]} 48... hxg5+
{[%clk 0:00:05.5]} 49. hxg5+ {[%clk 0:00:04.6]} 49... Kg6 {[%clk 0:00:05.9]} 50.
Ke5 {[%clk 0:00:05.1]} 50... Kxg5 {[%clk 0:00:05]} 51. Kd6 {[%clk 0:00:05.4]}
51... bxc5 {[%clk 0:00:05.2]} 52. bxc5 {[%clk 0:00:05.7]} 52... a5 {[%clk
0:00:04.7]} 53. Kxc6 {[%clk 0:00:06.5]} 53... a4 {[%clk 0:00:05.6]} 54. Kb5
{[%clk 0:00:05.8]} 54... a3 {[%clk 0:00:06.5]} 55. c6 {[%clk 0:00:06.3]} 55...
a2 {[%clk 0:00:07.4]} 56. c7 {[%clk 0:00:07]} 56... a1=Q {[%clk 0:00:06.5]} 57.
c8=Q {[%clk 0:00:07.9]} 57... Qb1+ {[%clk 0:00:06.3]} 58. Ka6 {[%clk 0:00:08.1]}
58... Qa2+ {[%clk 0:00:06.6]} 59. Kb7 {[%clk 0:00:08.5]} 59... Qb3+ {[%clk
0:00:06.8]} 60. Kc7 {[%clk 0:00:09]} 60... Qc3+ {[%clk 0:00:06.7]} 61. Kb8
{[%clk 0:00:09.7]} 61... Qxc8+ {[%clk 0:00:07.6]} 62. Kxc8 {[%clk 0:00:10.6]}
1/2-1/2

[Event "*** SCC Grand Prix: Titled Tuesday Blitz"]
[Site "Chess.com"]
[Date "2020.06.02"]
[Round "9"]
[White "keepitcool9499"]
[Black "Everyfishknows"]
[Result "1-0"]
[WhiteElo "2476"]
[BlackElo "2329"]
[TimeControl "180+1"]
[EndTime "11:48:11 PDT"]
[Termination "keepitcool9499 won by resignation"]

1. d4 {[%clk 0:03:00.9]} 1... Nf6 {[%clk 0:02:59.5]} 2. c4 {[%clk 0:03:00]} 2...
e6 {[%clk 0:02:53.7]} 3. Nc3 {[%clk 0:02:58.3]} 3... Bb4 {[%clk 0:02:53.9]} 4.
Bd2 {[%clk 0:02:56.6]} 4... O-O {[%clk 0:02:48.8]} 5. Nf3 {[%clk 0:02:56]} 5...
b6 {[%clk 0:02:48.3]} 6. e3 {[%clk 0:02:54]} 6... Bb7 {[%clk 0:02:48.4]} 7. Bd3
{[%clk 0:02:48]} 7... d5 {[%clk 0:02:47.5]} 8. O-O {[%clk 0:02:38.9]} 8... Nbd7
{[%clk 0:02:43.8]} 9. Rc1 {[%clk 0:02:16.3]} 9... c5 {[%clk 0:02:33.1]} 10. a3
{[%clk 0:02:09.4]} 10... Bxc3 {[%clk 0:02:31.6]} 11. Bxc3 {[%clk 0:02:07.4]}
11... dxc4 {[%clk 0:02:26.2]} 12. Bxc4 {[%clk 0:02:05.3]} 12... Ne4 {[%clk
0:02:26.2]} 13. Qe2 {[%clk 0:01:58.4]} 13... Nxc3 {[%clk 0:02:16.8]} 14. Rxc3
{[%clk 0:01:55.7]} 14... Nf6 {[%clk 0:02:07.8]} 15. dxc5 {[%clk 0:01:51.9]}
15... Ne4 {[%clk 0:02:07.8]} 16. Rcc1 {[%clk 0:01:49.2]} 16... Nxc5 {[%clk
0:02:06.6]} 17. Rfd1 {[%clk 0:01:44.1]} 17... Qe7 {[%clk 0:02:06.2]} 18. b4
{[%clk 0:01:36.8]} 18... Ne4 {[%clk 0:02:01.6]} 19. Ba6 {[%clk 0:01:32.5]} 19...
Rac8 {[%clk 0:01:59.5]} 20. Bxb7 {[%clk 0:01:29.3]} 20... Qxb7 {[%clk
0:02:00.4]} 21. Qd3 {[%clk 0:01:16.6]} 21... h6 {[%clk 0:01:43.1]} 22. h3 {[%clk
0:01:12.9]} 22... Nf6 {[%clk 0:01:26.6]} 23. Ne5 {[%clk 0:01:10.5]} 23... Rxc1
{[%clk 0:01:23]} 24. Rxc1 {[%clk 0:01:09.5]} 24... Rc8 {[%clk 0:01:23.6]} 25.
Rxc8+ {[%clk 0:01:03.2]} 25... Qxc8 {[%clk 0:01:24.5]} 26. Qc4 {[%clk
0:01:00.7]} 26... Qxc4 {[%clk 0:01:20.8]} 27. Nxc4 {[%clk 0:01:01.6]} 27... Ne4
{[%clk 0:01:03.4]} 28. Kf1 {[%clk 0:00:56.1]} 28... Kf8 {[%clk 0:00:58.3]} 29.
f3 {[%clk 0:00:53.6]} 29... Nc3 {[%clk 0:00:47.5]} 30. Ke1 {[%clk 0:00:53.6]}
30... Ke7 {[%clk 0:00:43.4]} 31. Kd2 {[%clk 0:00:52.3]} 31... Nd5 {[%clk
0:00:42.4]} 32. Ne5 {[%clk 0:00:47.8]} 32... a6 {[%clk 0:00:34.5]} 33. Kd3
{[%clk 0:00:44.9]} 33... f6 {[%clk 0:00:34.6]} 34. Nc4 {[%clk 0:00:42.3]} 34...
b5 {[%clk 0:00:34.5]} 35. Nd2 {[%clk 0:00:39.8]} 35... Nb6 {[%clk 0:00:25.4]}
36. f4 {[%clk 0:00:37]} 36... Kd6 {[%clk 0:00:22.6]} 37. Ne4+ {[%clk 0:00:34.8]}
37... Ke7 {[%clk 0:00:14.1]} 38. Kd4 {[%clk 0:00:31.8]} 38... Nc4 {[%clk
0:00:12.6]} 39. a4 {[%clk 0:00:29.3]} 39... Nb2 {[%clk 0:00:05.9]} 40. axb5
{[%clk 0:00:27]} 40... axb5 {[%clk 0:00:06.8]} 41. Nc3 {[%clk 0:00:25.3]} 41...
Kd6 {[%clk 0:00:06]} 42. Nxb5+ {[%clk 0:00:24]} 42... Kc6 {[%clk 0:00:06.6]} 43.
Nc3 {[%clk 0:00:23.2]} 43... Kd6 {[%clk 0:00:05]} 44. Ne4+ {[%clk 0:00:18.5]}
44... Kc6 {[%clk 0:00:04.8]} 45. Nc5 {[%clk 0:00:17.8]} 45... Kd6 {[%clk
0:00:03.2]} 46. Nd3 {[%clk 0:00:13.2]} 46... e5+ {[%clk 0:00:03.7]} 47. fxe5+
{[%clk 0:00:10.5]} 47... fxe5+ {[%clk 0:00:04.6]} 48. Nxe5 {[%clk 0:00:08]}
48... Nd1 {[%clk 0:00:04.4]} 49. Nd3 {[%clk 0:00:07.2]} 49... Kc6 {[%clk
0:00:03.1]} 50. Ke4 {[%clk 0:00:06.9]} 50... Nc3+ {[%clk 0:00:01.6]} 51. Kf5
{[%clk 0:00:07]} 51... Nd5 {[%clk 0:00:02.3]} 52. e4 {[%clk 0:00:07]} 52... Ne3+
{[%clk 0:00:02.2]} 53. Kg6 {[%clk 0:00:07.3]} 53... Nxg2 {[%clk 0:00:03.1]} 54.
Kxg7 {[%clk 0:00:07.5]} 54... Kd6 {[%clk 0:00:03.2]} 55. Kxh6 {[%clk 0:00:07.8]}
55... Ne3 {[%clk 0:00:03.7]} 56. Kg5 {[%clk 0:00:08.1]} 56... Nf1 {[%clk
0:00:03.6]} 57. h4 {[%clk 0:00:08.3]} 57... Nd2 {[%clk 0:00:04.2]} 58. e5+
{[%clk 0:00:07.3]} 58... Ke6 {[%clk 0:00:04.8]} 59. h5 {[%clk 0:00:07.8]} 59...
Ne4+ {[%clk 0:00:05.3]} 60. Kg6 {[%clk 0:00:08.1]} 60... Ng3 {[%clk 0:00:05.6]}
61. h6 {[%clk 0:00:08.4]} 61... Nf5 {[%clk 0:00:05.8]} 62. h7 {[%clk 0:00:08.7]}
62... Ne7+ {[%clk 0:00:06.4]} 63. Kg7 {[%clk 0:00:08.5]} 63... Kd5 {[%clk
0:00:06.6]} 64. h8=Q {[%clk 0:00:08.5]} 64... Nf5+ {[%clk 0:00:07.5]} 1-0

[Event "*** SCC Grand Prix: Titled Tuesday Blitz"]
[Site "Chess.com"]
[Date "2020.06.02"]
[Round "9"]
[White "kushagramohan"]
[Black "ajian"]
[Result "0-1"]
[WhiteElo "2623"]
[BlackElo "2461"]
[TimeControl "180+1"]
[EndTime "11:48:12 PDT"]
[Termination "ajian won by checkmate"]

1. e4 {[%clk 0:03:00.9]} 1... c5 {[%clk 0:03:00]} 2. Nf3 {[%clk 0:03:00.8]} 2...
Nc6 {[%clk 0:03:00.4]} 3. d4 {[%clk 0:03:01.1]} 3... cxd4 {[%clk 0:03:01.3]} 4.
Nxd4 {[%clk 0:03:01.9]} 4... Nf6 {[%clk 0:03:01.7]} 5. Nc3 {[%clk 0:03:01.5]}
5... e5 {[%clk 0:03:02.1]} 6. Ndb5 {[%clk 0:03:01.6]} 6... d6 {[%clk 0:03:02.5]}
7. Bg5 {[%clk 0:03:01.6]} 7... a6 {[%clk 0:03:02.9]} 8. Na3 {[%clk 0:03:02.1]}
8... b5 {[%clk 0:03:03.8]} 9. Nd5 {[%clk 0:03:02.5]} 9... Be7 {[%clk 0:03:03.7]}
10. Bxf6 {[%clk 0:03:03.1]} 10... Bxf6 {[%clk 0:03:04.6]} 11. c3 {[%clk
0:03:03.8]} 11... O-O {[%clk 0:03:04.8]} 12. Nc2 {[%clk 0:03:04.4]} 12... Rb8
{[%clk 0:03:05.2]} 13. h4 {[%clk 0:03:00.6]} 13... g6 {[%clk 0:03:00.8]} 14. h5
{[%clk 0:03:00.4]} 14... Bg5 {[%clk 0:03:00.7]} 15. Nce3 {[%clk 0:02:49.8]}
15... Be6 {[%clk 0:02:50.4]} 16. g3 {[%clk 0:02:43.8]} 16... Ne7 {[%clk
0:02:36.6]} 17. Bg2 {[%clk 0:02:43.5]} 17... Bxe3 {[%clk 0:02:14.2]} 18. Nxe3
{[%clk 0:02:43.1]} 18... a5 {[%clk 0:02:10.4]} 19. O-O {[%clk 0:02:37.7]} 19...
Kg7 {[%clk 0:02:07.7]} 20. Qd2 {[%clk 0:02:32.4]} 20... Qc7 {[%clk 0:01:59.7]}
21. h6+ {[%clk 0:02:27.2]} 21... Kh8 {[%clk 0:01:57.3]} 22. f4 {[%clk
0:02:25.7]} 22... f6 {[%clk 0:01:53.1]} 23. Rf2 {[%clk 0:02:19.9]} 23... b4
{[%clk 0:01:50.7]} 24. Raf1 {[%clk 0:02:18.1]} 24... bxc3 {[%clk 0:01:44.1]} 25.
bxc3 {[%clk 0:02:19]} 25... Ng8 {[%clk 0:01:34.3]} 26. f5 {[%clk 0:02:17.6]}
26... Bf7 {[%clk 0:01:31.1]} 27. fxg6 {[%clk 0:01:37.3]} 27... hxg6 {[%clk
0:01:28.1]} 28. Ng4 {[%clk 0:01:34.8]} 28... Bc4 {[%clk 0:01:22.5]} 29. Rd1
{[%clk 0:01:23.8]} 29... Be6 {[%clk 0:01:14.1]} 30. Ne3 {[%clk 0:01:21]} 30...
Rbd8 {[%clk 0:00:56.4]} 31. Nd5 {[%clk 0:01:08.1]} 31... Bxd5 {[%clk 0:00:55.8]}
32. exd5 {[%clk 0:01:09]} 32... Kh7 {[%clk 0:00:47.2]} 33. Bf3 {[%clk
0:01:00.6]} 33... f5 {[%clk 0:00:40.1]} 34. Qg5 {[%clk 0:00:52.1]} 34... Qe7
{[%clk 0:00:36.3]} 35. Qe3 {[%clk 0:00:42.7]} 35... f4 {[%clk 0:00:30.7]} 36.
gxf4 {[%clk 0:00:33.2]} 36... Rxf4 {[%clk 0:00:30.8]} 37. Re1 {[%clk 0:00:32.7]}
37... Rdf8 {[%clk 0:00:28.5]} 38. Ree2 {[%clk 0:00:28.6]} 38... Nxh6 {[%clk
0:00:25]} 39. Bg2 {[%clk 0:00:28.3]} 39... Ng4 {[%clk 0:00:11.5]} 40. Qh3+
{[%clk 0:00:28.2]} 40... Kg7 {[%clk 0:00:11.7]} 41. Rxf4 {[%clk 0:00:23.2]}
41... Rxf4 {[%clk 0:00:12]} 42. Qg3 {[%clk 0:00:17.3]} 42... Qa7+ {[%clk
0:00:12.3]} 43. Kh1 {[%clk 0:00:17.1]} 43... Nf2+ {[%clk 0:00:11.6]} 44. Kh2
{[%clk 0:00:17.2]} 44... Ng4+ {[%clk 0:00:11.7]} 45. Kh1 {[%clk 0:00:17.2]}
45... Qb6 {[%clk 0:00:06.3]} 46. Bh3 {[%clk 0:00:15.8]} 46... Nf2+ {[%clk
0:00:03.7]} 47. Kg2 {[%clk 0:00:15.3]} 47... Nxh3 {[%clk 0:00:03.8]} 48. Qxh3
{[%clk 0:00:16.2]} 48... Qd8 {[%clk 0:00:03.5]} 49. Re3 {[%clk 0:00:12.7]} 49...
Qg5+ {[%clk 0:00:03.5]} 50. Rg3 {[%clk 0:00:12.6]} 50... Qf6 {[%clk 0:00:03.5]}
51. Qd7+ {[%clk 0:00:12.4]} 51... Qf7 {[%clk 0:00:02.8]} 52. Qxd6 {[%clk
0:00:07.2]} 52... Rf2+ {[%clk 0:00:03]} 53. Kg1 {[%clk 0:00:06.8]} 53... Rf1+
{[%clk 0:00:03.1]} 54. Kh2 {[%clk 0:00:07]} 54... Qf2+ {[%clk 0:00:03.1]} 55.
Kh3 {[%clk 0:00:07.5]} 55... Rh1+ {[%clk 0:00:03.7]} 56. Kg4 {[%clk 0:00:07.8]}
56... Qf5# {[%clk 0:00:04.3]} 0-1